Workbook

Sheet 工程量清单
A1: 项目名称 | B1: 项目特征描述 | C1: 工程量（平方米）
A2: 屋面卷材防水 | B2: 1、卷材品种、规格、厚度：4mm厚SBS改性沥青防水卷材 2、防水层做法：聚氨酯防水涂料厚1.5mm；4mm厚SBS改性沥青防水卷材防水层 | C2: 1476.73
A3: 铲除涂料面 | B3: 1、铲除部位名称：外墙涂料 | C3: 2117.44
A4: 墙面喷刷涂料 | B4: 1、基层类型：外墙面 2、喷刷涂料部位：外墙面 3、腻子种类：901胶白水泥腻子 4、刮腻子要求：二遍 5、涂料品种、喷刷遍数：外墙乳胶漆毛面 | C4: 2029.42
A5: 飘窗水泥砂浆找平层拆除 | B5: 1、部位：飘窗板 2、找平层厚度：20厚水泥砂浆 | C5: 88.02
A6: 屋面刚性层 | B6: 1、部位：飘窗板 2、刚性层厚度：20厚1：2防水砂浆 | C6: 88.02
A7: 屋面涂膜防水 | B7: 1、部位：飘窗板 2、防水膜品种：聚氨酯防水涂料 3、涂膜厚度、遍数：1.5厚两遍成形 | C7: 88.02
A8: 外装饰吊篮 | C8: 2296.75

Sheet 练湖新城
A1: 练湖新城
A2: 维修部位 | B2: 长度 | C2: 宽度（高度） | D2: 计量 | E2: 总量
A3: B22-1-701
A4: 南房南墙 | B4: 3.36 | C4: 6.5 | D4: 1 | E4: 21.84
A5: 飘窗 | B5: 1.7 | C5: 1.8 | D5: -1 | E5: -3.06
A6: 飘窗顶 | B6: 1.7 | C6: 1 | D6: 1 | E6: 1.70
A7: A4-4-608
A8: 西墙 | B8: 2.65 | C8: 21 | D8: 1 | E8: 55.65
A9: 西墙平台 | B9: 4.5 | C9: 3 | D9: 1 | E9: 13.50
A10: 南房南墙 | B10: 3.45 | C10: 3 | D10: 1 | E10: 10.35
A11: 窗 | B11: 1.85 | C11: 1.76 | D11: -1 | E11: -3.26
A12: 南房西墙 | B12: 3.93 | C12: 3 | D12: 1 | E12: 11.79
A13: 北房北墙 | B13: 3.06 | C13: 3 | D13: 1 | E13: 9.18
A14: 窗 | B14: 1.85 | C14: 1.76 | D14: -1 | E14: -3.26
A15: 北房西墙 | B15: 2.9 | C15: 3 | D15: 1 | E15: 8.70
A16: 楼道顶 | B16: 2.35 | C16: 4.9 | D16: 1 | E16: 11.52
A17: 阁楼东墙 | B17: 2.04 | C17: 1.88 | D17: 1 | E17: 3.84
A18: A10-3-609
A19: 阁楼南墙 | B19: 3.39 | C19: 3 | D19: 1 | E19: 10.17
A20: 南飘窗 | B20: 1.75 | C20: 1.35 | D20: -1 | E20: -2.36
A21: 飘窗顶 | B21: 1.75 | C21: 1 | D21: 1 | E21: 1.75
A22: 西采光井1 | B22: 3.74 | C22: 3 | D22: 1 | E22: 11.22
A23: 西采光井2 | B23: 1.3 | C23: 1 | D23: 1 | E23: 1.30
A24: 楼面1 | B24: 7.66 | C24: 6.8 | D24: 1 | E24: 52.09
A25: 楼面2 | B25: 4.3 | C25: 1.4 | D25: 1 | E25: 6.02
A26: 围墙 | B26: 7.32 | C26: 0.42 | D26: 1 | E26: 3.07
A27: 石墩1 | B27: 0.51 | C27: 0.51 | D27: -39 | E27: -10.14
A28: 石墩2 | B28: 1.5 | C28: 0.38 | D28: 39 | E28: 22.23
A29: 烟道 | B29: 0.62 | C29: 1.02 | D29: 2 | E29: 1.27
A30: 天沟1 | B30: 4.2 | C30: 1 | D30: 1 | E30: 4.20
A31: 天沟2 | B31: 3.08 | C31: 1 | D31: 1 | E31: 3.08
A32: 北房北墙 | B32: 3.2 | C32: 4 | D32: 1 | E32: 12.80
A33: 北飘窗 | B33: 1.75 | C33: 1.35 | D33: -1 | E33: -2.36
A34: 飘窗顶 | B34: 1.75 | C34: 1 | D34: 1 | E34: 1.75
A35: 阳台顶 | B35: 3.76 | C35: 1.86 | D35: 1 | E35: 6.99
A36: A13-4-107
A37: 南房南墙 | B37: 3.4 | C37: 6.5 | D37: 1 | E37: 22.10
A38: 窗 | B38: 1.87 | C38: 1.78 | D38: -2 | E38: -6.66
A39: 飘窗顶 | B39: 1.5 | C39: 1 | D39: 1 | E39: 1.50
A40: A13-4-108
A41: 南房南墙 | B41: 3.4 | C41: 6.5 | D41: 1 | E41: 22.10
A42: 窗 | B42: 1.87 | C42: 1.78 | D42: -2 | E42: -6.66
A43: 飘窗顶 | B43: 1.5 | C43: 1 | D43: 1 | E43: 1.50
A44: 北房北墙 | B44: 3.2 | C44: 4 | D44: 1 | E44: 12.80
A45: 北飘窗 | B45: 1.75 | C45: 1.35 | D45: -1 | E45: -2.36
A46: 飘窗顶 | B46: 1.75 | C46: 1 | D46: 1 | E46: 1.75
A47: A13-4-508
A48: 南房南墙 | B48: 3.4 | C48: 6.5 | D48: 1 | E48: 22.10
A49: 窗 | B49: 1.87 | C49: 1.78 | D49: -2 | E49: -6.66
A50: 飘窗顶 | B50: 1.5 | C50: 1 | D50: 1 | E50: 1.50
A51: A7-4-607
A52: 阁楼西墙斜面 | B52: 2.77 | C52: 2.5 | D52: 1 | E52: 6.93
A53: 阁楼楼面 | B53: 3.7 | C53: 3.4 | D53: 1 | E53: 12.58
A54: 南天沟 | B54: 3.8 | C54: 2 | D54: 1 | E54: 7.60
A55: A7-4-608
A56: 西墙 | B56: 2.65 | C56: 21 | D56: 1 | E56: 55.65
A57: 西墙平台 | B57: 4.5 | C57: 2 | D57: 1 | E57: 9.00
A58: 阁楼西墙斜面 | B58: 2.77 | C58: 2.5 | D58: 1 | E58: 6.93
A59: 阁楼楼面 | B59: 3.7 | C59: 3.4 | D59: 1 | E59: 12.58
A60: 南天沟 | B60: 3.8 | C60: 2.5 | D60: 1 | E60: 9.50
A61: 北天沟 | B61: 4.2 | C61: 1.5 | D61: 1 | E61: 6.30
A62: 西天沟 | B62: 3.76 | C62: 0.31 | D62: 1 | E62: 1.17
A63: 西平台 | B63: 6.1 | C63: 1.96 | D63: 1 | E63: 11.96
A64: A13-4-607
A65: 烟道 | B65: 0.62 | C65: 1.02 | D65: 1 | E65: 0.63
A66: 阳台 南墙 | B66: 3.50 | C66: 1.00 | D66: 1 | E66: 3.50
A67: A15-3-506
A68: 南房南墙 | B68: 3.4 | C68: 6.5 | D68: 1 | E68: 22.10
A69: 飘窗 | B69: 1.86 | C69: 1.75 | D69: -1 | E69: -3.26
A70: 飘窗顶 | B70: 1.86 | C70: 1 | D70: 1 | E70: 1.86
A71: 西南房西墙 | B71: 3.4 | C71: 6.5 | D71: 1 | E71: 22.10
A72: 空调板 | B72: 1.86 | C72: 1 | D72: 1 | E72: 1.86
A73: A18-1-301
A74: 东墙 | B74: 2.65 | C74: 21 | D74: 1 | E74: 55.65
A75: 东墙平台 | B75: 4.15 | C75: 2 | D75: 1 | E75: 8.30
A76: 南房东墙 | B76: 4.25 | C76: 6.5 | D76: 1 | E76: 27.63
A77: A10-3-608
A78: 南墙 | B78: 3.36 | C78: 6.5 | D78: 1 | E78: 21.84
A79: 西墙 | B79: 3.09 | C79: 6.5 | D79: 1 | E79: 20.09
A80: 飘窗顶 | B80: 1.86 | C80: 1 | D80: 1 | E80: 1.86
A81: 楼面1 | B81: 7.4 | C81: 6.33 | D81: 1 | E81: 46.84
A82: 楼面2 | B82: 4.5 | C82: 1.6 | D82: 1 | E82: 7.20
A83: 石墩1 | B83: 0.51 | C83: 0.51 | D83: -40 | E83: -10.40
A84: 石墩2 | B84: 1.5 | C84: 0.38 | D84: 40 | E84: 22.80
A85: 阁楼东墙斜面 | B85: 6 | C85: 2.9 | D85: 1 | E85: 17.40
A86: A19-1-501
A87: 南房南墙 | B87: 2.75 | C87: 6.5 | D87: 1 | E87: 17.88
A88: 飘窗 | B88: 1.86 | C88: 1.75 | D88: -1 | E88: -3.26
A89: 飘窗顶 | B89: 1.86 | C89: 1 | D89: 1 | E89: 1.86
A90: 东南房南墙 | B90: 3.4 | C90: 6.5 | D90: 1 | E90: 22.10
A91: 飘窗 | B91: 1.86 | C91: 1.75 | D91: -1 | E91: -3.26
A92: 飘窗顶 | B92: 1.86 | C92: 1 | D92: 1 | E92: 1.86
A93: 东南房东墙 | B93: 4.25 | C93: 6.5 | D93: 1 | E93: 27.63
A94: 厨房东墙 | B94: 4.1 | C94: 6.5 | D94: 1 | E94: 26.65
A95: 客厅北空调板 | B95: 1.5 | C95: 1 | D95: 1 | E95: 1.50
A96: 客厅北墙 | B96: 1.2 | C96: 6.5 | D96: 1 | E96: 7.80
A97: 东墙 | B97: 2.65 | C97: 21 | D97: 1 | E97: 55.65
A98: 东墙平台 | B98: 4.3 | C98: 2 | D98: 1 | E98: 8.60
A99: 卫生间北墙 | B99: 1.56 | C99: 6.5 | D99: 1 | E99: 10.14
A100: A25-1-601
A101: 北房北墙 | B101: 2.57 | C101: 3 | D101: 1 | E101: 7.71
A102: 北飘窗 | B102: 1.85 | C102: 1.45 | D102: -1 | E102: -2.68
A103: 飘窗顶 | B103: 1.45 | C103: 1 | D103: 1 | E103: 1.45
A104: 北房东墙 | B104: 3.6 | C104: 3 | D104: 1 | E104: 10.80
A105: 南房南墙 | B105: 3.4 | C105: 3 | D105: 1 | E105: 10.20
A106: 南飘窗 | B106: 1.85 | C106: 1.75 | D106: -1 | E106: -3.24
A107: 飘窗顶 | B107: 1.75 | C107: 1 | D107: 1 | E107: 1.75
A108: 南房东墙 | B108: 6.65 | C108: 3 | D108: 1 | E108: 19.95
A109: 窗 | B109: 1.78 | C109: 0.8 | D109: -1 | E109: -1.42
A110: 南北房楼面 | B110: 6.3 | C110: 1.95 | D110: 1 | E110: 12.29
A111: 天沟 | B111: 3.6 | C111: 1.1 | D111: 1 | E111: 3.96
A112: 阁楼东外墙 | B112: 9.9 | C112: 1.4 | D112: 1 | E112: 13.86
A113: 阁楼西斜屋面 | B113: 6.72 | C113: 6.35 | D113: 1 | E113: 42.67
A114: 阁楼平台 | B114: 8 | C114: 7 | D114: 1 | E114: 56.00
A115: 石墩① | B115: 0.51 | C115: 0.51 | D115: -40 | E115: -10.40
A116: 石墩② | B116: 1.5 | C116: 0.38 | D116: 40 | E116: 22.80
A117: A31-401、901
A118: 东墙 | B118: 2.05 | C118: 33 | D118: 1 | E118: 67.65
A119: 东墙平台 | B119: 4.1 | C119: 2 | D119: 1 | E119: 8.20
A120: A31-801
A121: 南房南墙 | B121: 3.4 | C121: 6.5 | D121: 1 | E121: 22.10
A122: 飘窗 | B122: 1.86 | C122: 1.75 | D122: -1 | E122: -3.26
A123: 飘窗顶 | B123: 1.86 | C123: 1 | D123: 1 | E123: 1.86
A124: 北房东墙 | B124: 2.4 | C124: 6.5 | D124: 1 | E124: 15.60
A125: 空调板 | B125: 1.86 | C125: 1 | D125: 1 | E125: 1.86
A126: 北房北墙 | B126: 3.7 | C126: 6.5 | D126: 1 | E126: 24.05
A127: 窗 | B127: 1.67 | C127: 2 | D127: -1 | E127: -3.34
A128: 南房东墙 | B128: 3 | C128: 6.5 | D128: 1 | E128: 19.50
A129: A34-1-901
A130: 南房采光井 | B130: 4.15 | C130: 6.5 | D130: 1 | E130: 26.98
A131: 北房北墙 | B131: 3.2 | C131: 6.5 | D131: 1 | E131: 20.80
A132: 窗 | B132: 2.13 | C132: 1.6 | D132: -2 | E132: -6.82
A133: A34-1-1003
A134: 东北房北墙 | B134: 2.77 | C134: 6.5 | D134: 1 | E134: 18.01
A135: 窗 | B135: 1.44 | C135: 1.83 | D135: -2 | E135: -5.27
A136: 飘窗顶 | B136: 1.8 | C136: 1 | D136: 1 | E136: 1.80
A137: 西北房北墙 | B137: 3.4 | C137: 6.5 | D137: 1 | E137: 22.10
A138: 窗 | B138: 2.37 | C138: 1.63 | D138: -2 | E138: -7.73
A139: A2-3-508
A140: 北房北墙 | B140: 3.35 | C140: 6.5 | D140: 1 | E140: 21.78
A141: 窗 | B141: 1.87 | C141: 1.78 | D141: -2 | E141: -6.66
A142: 飘窗顶 | B142: 1.55 | C142: 1 | D142: 1 | E142: 1.55
A143: B1-1-301
A144: 南房南墙 | B144: 2.76 | C144: 6.5 | D144: 1 | E144: 17.94
A145: 飘窗 | B145: 1.86 | C145: 1.75 | D145: -1 | E145: -3.26
A146: 飘窗顶 | B146: 1.86 | C146: 1 | D146: 1 | E146: 1.86
A147: 客厅东墙 | B147: 3.45 | C147: 6.5 | D147: 1 | E147: 22.43
A148: B1-2-303
A149: 北房北墙 | B149: 3.4 | C149: 6.5 | D149: 1 | E149: 22.10
A150: 飘窗 | B150: 1.86 | C150: 1.75 | D150: -1 | E150: -3.26
A151: 飘窗顶 | B151: 1.86 | C151: 1 | D151: 1 | E151: 1.86
A152: 西南房飘窗 | B152: 2.46 | C152: 6.5 | D152: 1 | E152: 15.99
A153: 飘窗 | B153: 1.83 | C153: 1.45 | D153: -1 | E153: -2.65
A154: 飘窗顶 | B154: 1.45 | C154: 1 | D154: 1 | E154: 1.45
A155: 东南房飘窗 | B155: 3.38 | C155: 6.5 | D155: 1 | E155: 21.97
A156: 飘窗 | B156: 1.86 | C156: 1.75 | D156: -1 | E156: -3.26
A157: 飘窗顶 | B157: 1.86 | C157: 1 | D157: 1 | E157: 1.86
A158: B5-4-607
A159: 北天沟 | B159: 3.97 | C159: 1.2 | D159: 1 | E159: 4.76
A160: 南天沟 | B160: 3.97 | C160: 1.2 | D160: 1 | E160: 4.76
A161: 阁楼西墙斜面 | B161: 2.77 | C161: 2.5 | D161: 1 | E161: 6.93
A162: 楼顶平台 | B162: 8.3 | C162: 5 | D162: 1 | E162: 41.50
A163: 石墩① | B163: 0.51 | C163: 0.51 | D163: -22 | E163: -5.72
A164: 石墩② | B164: 1.5 | C164: 0.38 | D164: 22 | E164: 12.54
A165: 北天沟 | B165: 7.75 | C165: 1.2 | D165: 1 | E165: 9.30
A166: 阁楼北斜屋面 | B166: 6.72 | C166: 6.35 | D166: 1 | E166: 42.67
A167: 东天沟 | B167: 7 | C167: 2 | D167: 1 | E167: 14.00
A168: 烟道 | B168: 0.62 | C168: 1.02 | D168: 1 | E168: 0.64
A169: 北房北墙 | B169: 3.2 | C169: 3 | D169: 1 | E169: 9.60
A170: 飘窗 | B170: 1.86 | C170: 1.75 | D170: -1 | E170: -3.26
A171: 飘窗顶 | B171: 1.86 | C171: 1 | D171: 1 | E171: 1.86
A172: 南房南墙 | B172: 3.4 | C172: 3 | D172: 1 | E172: 10.20
A173: 窗户① | B173: 0.6 | C173: 1.87 | D173: -1 | E173: -1.12
A174: 窗户② | B174: 1.15 | C174: 1.87 | D174: -1 | E174: -2.15
A175: 南房东墙 | B175: 4.3 | C175: 3 | D175: 1 | E175: 12.90
A176: 南北天沟 | B176: 7.75 | C176: 1.2 | D176: 2 | E176: 18.60
A177: B11-1-102
A178: 北房顶面 | B178: 2.5 | C178: 0.5 | D178: 2 | E178: 2.50
A179: 北外墙侧面 | B179: 4.2 | C179: 1 | D179: 1 | E179: 4.20
A180: 北外墙 | B180: 2.5 | C180: 3 | D180: 1 | E180: 7.50
A181: B16-3-406
A182: 西墙 | B182: 2.65 | C182: 21 | D182: 1 | E182: 55.65
A183: 西墙平台 | B183: 4.2 | C183: 2 | D183: 1 | E183: 8.40
A184: 西南房南墙 | B184: 3.37 | C184: 3 | D184: 1 | E184: 10.11
A185: 西南房飘窗 | B185: 1.86 | C185: 1.75 | D185: -1 | E185: -3.26
A186: 飘窗顶 | B186: 1.86 | C186: 1 | D186: 1 | E186: 1.86
A187: 东南房南墙 | B187: 2.77 | C187: 3 | D187: 1 | E187: 8.31
A188: 窗 | B188: 0.74 | C188: 1.82 | D188: -2 | E188: -2.69
A189: B20-1-601
A190: 阁楼西墙斜面 | B190: 2.77 | C190: 2.5 | D190: 1 | E190: 6.93
A191: 阁楼楼面 | B191: 3.7 | C191: 3.4 | D191: 1 | E191: 12.58
A192: 石墩1 | B192: 0.51 | C192: 0.51 | D192: -6 | E192: -1.56
A193: 石墩2 | B193: 1.5 | C193: 0.38 | D193: 6 | E193: 3.42
A194: 楼梯道楼面 | B194: 2 | C194: 2 | D194: 1 | E194: 4.00
A195: 北天沟 | B195: 9.3 | C195: 2.5 | D195: 1 | E195: 23.25
A196: 客厅东墙 | B196: 4.35 | C196: 3 | D196: 1 | E196: 13.05
A197: 北房北墙 | B197: 2.49 | C197: 3 | D197: 1 | E197: 7.47
A198: 窗 | B198: 1.8 | C198: 1.5 | D198: -1 | E198: -2.70
A199: 飘窗顶 | B199: 1.5 | C199: 1 | D199: 1 | E199: 1.50
A200: B21-1-302
... 126 more rows

Sheet 紫竹园
C1: 紫竹园
C2: 维修部位 | D2: 长度 | E2: 宽度（高度） | F2: 计量 | G2: 总量
C4: 3-2-606室
C5: 天窗斜顶 | D5: 6 | E5: 4.87 | F5: 1 | G5: =D5*E5*F5 -> 29.22
C6: 南天沟 | D6: 3.71 | E6: 1 | F6: 1 | G6: 3.71
C7: 3-1-601室
C8: 西南房斜顶 | D8: 3.15 | E8: 4.03 | F8: 1 | G8: 12.69
C9: 4-1-602室
C10: 阳光房 | D10: 2.35 | E10: 3.55 | F10: 1 | G10: =D10*E10*F10 -> 8.34
C11: 2-1-602室
C12: 阁楼平台 | D12: 2.3 | E12: 2 | F12: 1 | G12: 4.60
C13: 平台北墙 | D13: 0.9 | E13: 3 | F13: 1 | G13: 2.70
C14: 楼顶平台 | D14: 5 | E14: 6.5 | F14: 1 | G14: 32.50
C15: 4-4-608室
C16: 楼面 | D16: 3.7 | E16: 6.2 | F16: 1 | G16: =D16*E16*F16 -> 22.94
C17: 东天沟 | D17: 4 | E17: 1.2 | F17: 1 | G17: 4.80
C18: 西天沟 | D18: 4 | E18: 1.2 | F18: 1 | G18: 4.80
C19: 4-5-109室
C20: 北房北墙 | D20: 2.8 | E20: 3 | F20: 1 | G20: =D20*E20*F20 -> 8.40
C21: 窗户 | D21: 1.55 | E21: 1.42 | F21: -1 | G21: -2.20
C22: 窗沿 | D22: 1.55 | E22: 0.2 | F22: 4 | G22: 1.24
C23: 空调板 | D23: 1.5 | E23: 1 | F23: 2 | G23: 3.00
C24: 7-1-1603室
C25: 北房西墙 | D25: 3.4 | E25: 6 | F25: 1 | G25: =D25*E25*F25 -> 20.40
C26: 窗户 | D26: 2.35 | E26: 1.56 | F26: -1 | G26: -3.67
C27: 窗沿 | D27: 2.35 | E27: 0.2 | F27: 4 | G27: 1.88
C28: 7-1-1701室
C29: 楼道西墙 | D29: 3.59 | E29: 3 | F29: 1 | G29: =D29*E29 -> 10.77
C30: 7-2-904室
C31: 北房北墙 | D31: 3.25 | E31: 6 | F31: 1 | G31: =D31*E31*F31 -> 19.50
C32: 窗 | D32: 1.8 | E32: 1.43 | F32: -2 | G32: -5.15
C33: 窗沿 | D33: 1.8 | E33: 0.2 | F33: 4 | G33: 1.44
C34: 10-204室
C35: 南房南墙 | D35: 1.4 | E35: 6 | F35: 1 | G35: =D35*E35*F35 -> 8.40
C36: 平台西墙 | D36: 1 | E36: 6 | F36: 1 | G36: 6.00
C37: 平台 | D37: 1 | E37: 2.8 | F37: 1 | G37: 2.80
C38: 12-1806室
C39: 楼顶平台1 | D39: 3.1 | E39: 2.92 | F39: 1 | G39: =D39*E39*F39 -> 9.05
C40: 楼顶平台2 | D40: 6.38 | E40: 7.2 | F40: 1 | G40: 45.94
C41: 楼顶平台3 | D41: 4.5 | E41: 1.42 | F41: 1 | G41: 6.39
C42: 楼顶平台围墙1 | D42: =1.85+2.05+2.92+4.1+5.1+1.28+7.2 -> 24.5 | E42: 2.35 | F42: 1 | G42: 57.58
C43: 楼顶平台围墙2 | D43: 2.2 | E43: 2.35 | F43: 1 | G43: 5.17
C44: 15-1803室
C45: 楼顶平台1 | D45: 5.83 | E45: 3.6 | F45: 1 | G45: =D45*E45*F45 -> 20.99
C46: 楼顶平台2 | D46: 6.25 | E46: 5.7 | F46: 1 | G46: 35.63
C47: 楼顶平台3 | D47: 1.95 | E47: 3.68 | F47: 1 | G47: 7.18
C48: 楼顶平台围墙 | D48: 2 | E48: =5+1.2+5.1+0.4 -> 11.7 | F48: 1 | G48: 23.40
C49: 3-3-109室
C50: 卫生间东墙 | D50: 3 | E50: 2.46 | F50: 1 | G50: =D50*E50*F50 -> 7.38
C51: 采光井 | D51: 2.48 | E51: 3 | F51: 1 | G51: 7.44
C52: 挡板 | D52: 2.1 | E52: 2.48 | F52: 1 | G52: 5.21
C53: 南墙 | D53: 1.4 | E53: 3 | F53: 1 | G53: 4.20
C54: 空调平台 | D54: 1.5 | E54: 1 | F54: 1 | G54: 1.50
C55: 侧墙 | D55: 0.96 | E55: 3 | F55: 1 | G55: 2.88
C56: 17-1-301室
C57: 客厅东墙 | D57: 4 | E57: 3 | F57: 1 | G57: =D57*E57*F57 -> 12.00
C58: 窗 | D58: 2.35 | E58: 1.65 | F58: -1 | G58: -3.88
C59: 窗沿 | D59: 2.35 | E59: 0.2 | F59: 4 | G59: 1.88
C60: 东墙平台 | D60: 10 | E60: 1.5 | F60: 1 | G60: 15.00
C61: 4-3-506室
C62: 南房顶 | D62: 4.4 | E62: 2.75 | F62: 1 | G62: =D62*E62*F62 -> 12.10
C63: 伸缩缝 | D63: 1.4 | E63: 0.5 | F63: 1 | G63: 0.70
C64: 17-1-1201室
C65: 东房东墙 | D65: =0.62+1.57 -> 2.19 | E65: 3 | F65: 1 | G65: 6.57
C66: 平台 | D66: 2.19 | E66: 0.7 | F66: 1 | G66: 1.53
C67: 平台围墙1 | D67: 3 | E67: 0.7 | F67: 1 | G67: 2.10
C68: 平台围墙2 | D68: 3 | E68: 1.2 | F68: 1 | G68: 3.60
C69: 9-1-1802室
C70: 客厅南墙外平台 | D70: 6 | E70: 0.35 | F70: 1 | G70: =D70*E70*F70 -> 2.10
C71: 客厅南墙 | D71: 2.4 | E71: 4.5 | F71: 1 | G71: 10.80
C72: 窗 | D72: 1.35 | E72: 1.4 | F72: -1 | G72: -1.89
C73: 窗沿 | D73: 0.2 | E73: 1.4 | F73: 4 | G73: 1.12
C74: 17-1-1501室
C75: 南房南墙 | D75: 1.4 | E75: 6 | F75: 1 | G75: =D75*E75*F75 -> 8.40
C76: 平台西墙 | D76: 1 | E76: 6 | F76: 1 | G76: 6.00
C77: 平台 | D77: 1 | E77: 2.8 | F77: 1 | G77: 2.80
C78: 南房东墙 | D78: 7.2 | E78: 6 | F78: 1 | G78: 43.20
C79: 2-2-602室
C80: 北房斜顶窗户 | D80: 1.15 | E80: 0.86 | F80: 1 | G80: =D80*E80*F80 -> 0.99
C81: 17-2-1805室
C82: 楼顶南围墙 | D82: 3.55 | E82: 3.97 | F82: 1 | G82: 14.09
C83: 楼顶南围墙 | D83: 1.15 | E83: 1.55 | F83: -2 | G83: -3.57
C84: 楼顶南侧墙 | D84: 1.55 | E84: 1.55 | F84: 1 | G84: 2.40
C85: 总计 | D85: 户数 | E85: 20
